bitfinex/quotes_SOLUSD_20241031
["timestamp","ask_amount","ask_price","bid_price","bid_amount"]
[1730392849899,12.11806925,170.09,170.07,23.776884]
[1730392850085,12.11806925,170.09,170.06,20.5808]
[1730392851491,12.11806925,170.09,170.06,14.7006]
[1730392852487,7.74912062,170.1,170.06,14.7006]
[1730392853815,7.74912062,170.1,170.06,20.5808]
[1730392854485,7.74912062,170.11,170.06,20.5808]
[1730392854702,6.477815,170.12,170.07,23.776884]
[1730392854703,14.22693562,170.12,170.07,23.776884]
[1730392855209,8.34853562,170.12,170.07,23.776884]
[1730392856209,8.34853562,170.12,170.08,20.5784]
[1730392856705,0.599415,170.12,170.09,23.776884]
[1730392857903,0.599415,170.12,170.09,29.655884]
[1730392858095,7.74912062,170.11,170.09,29.655884]
[1730392860814,7.74912062,170.1,170.08,14.6989]
[1730392863011,14.22673562,170.12,170.08,14.6989]
[1730392863508,8.34853562,170.12,170.08,14.6989]
[1730392865029,7.74912062,170.11,170.08,20.5784]
[1730392865198,7.74912062,170.1,170.08,14.6989]
[1730392866596,7.74912062,170.1,170.06,23.776884]
[1730392867103,7.74912062,170.1,170.07,4.09054765]
[1730392867302,7.74912062,170.11,170.08,4.09054765]
[1730392867508,7.74912062,170.11,170.06,23.776884]
[1730392867713,7.74912062,170.11,170.07,4.14967546]
[1730392867919,7.74912062,170.11,170.08,4.14967546]
[1730392868225,6.477615,170.12,170.07,5.8797]
[1730392868226,14.22673562,170.12,170.07,5.8797]
[1730392868404,0.599415,170.12,170.09,23.776884]
[1730392869009,8.34853562,170.12,170.08,23.776884]
[1730392869321,8.34853562,170.12,170.09,4.25329923]
[1730392869501,8.34853562,170.12,170.08,23.776884]
[1730392869701,8.34853562,170.12,170.09,4.25336939]
[1730392869925,8.34853562,170.12,170.09,5.8791]
[1730392870225,7.74912062,170.11,170.09,5.8791]
[1730392870923,9.0,170.1,170.09,29.655984]
[1730392871222,9.0,170.1,170.09,33.90934649]
[1730392873433,9.0,170.1,170.09,29.655984]
[1730392873629,9.0,170.1,170.09,33.90948841]
[1730392874931,16.74912062,170.1,170.07,14.6998]
[1730392875130,9.0,170.1,170.08,4.25340353]
[1730392875327,9.0,170.1,170.07,20.5797]
[1730392875518,9.0,170.1,170.08,4.25331064]
[1730392875830,9.0,170.1,170.04,35.93322501]
[1730392875831,7.74912062,170.09,170.04,35.93322501]
[1730392876033,7.74912062,170.08,170.05,4.25328426]
[1730392876209,7.74912062,170.08,170.06,4.25328426]
[1730392876411,7.74912062,170.08,170.04,36.498]
[1730392876412,7.74912062,170.08,170.07,4.25328426]
[1730392877113,7.74912062,170.08,170.05,5.8803]
[1730392877318,7.74912062,170.08,170.06,4.25360246]
[1730392877634,7.74912062,170.08,170.05,5.8803]
[1730392877816,7.74912062,170.09,170.06,4.25373878]
[1730392878014,7.74912062,170.09,170.07,4.25373878]
[1730392878218,7.74912062,170.09,170.05,5.8803]
[1730392878420,16.74912062,170.1,170.06,4.25367201]
[1730392878629,9.0,170.1,170.07,28.03055601]
[1730392878919,9.0,170.1,170.08,4.25367201]
[1730392879112,9.0,170.1,170.06,31.52600462]
[1730392879424,9.0,170.1,170.08,23.776884]
[1730392879612,9.0,170.1,170.07,7.74912062]
[1730392879813,9.0,170.1,170.09,23.776884]
[1730392881328,9.0,170.1,170.09,29.656084]
[1730392882831,9.0,170.1,170.09,33.90901318]
[1730392883018,9.0,170.1,170.09,61.6581338]
[1730392884239,9.0,170.1,170.09,84.4388038]
[1730392884736,9.0,170.1,170.09,89.7502264]
[1730392886327,9.0,170.1,170.09,84.43695257]
[1730392886528,9.0,170.1,170.09,88.78761808]
[1730392888016,9.0,170.1,170.09,84.53654013]
[1730392888215,9.0,170.1,170.09,88.78605032]
[1730392888637,9.0,170.1,170.09,84.53654013]
[1730392888844,9.0,170.1,170.09,88.78582942]
[1730392894130,9.0,170.1,170.09,94.09686418]
[1730392895048,9.0,170.1,170.09,84.53654013]
[1730392895247,9.0,170.1,170.09,88.78460236]
[1730392896321,9.0,170.1,170.09,101.08438849]
[1730392896538,0.599415,170.12,170.11,44.253354]
[1730392896739,0.599415,170.12,170.11,60.70120236]
[1730392897351,0.599415,170.12,170.11,66.57970236]
[1730392898249,28.35398613,170.24,170.13,0.25098]
[1730392898438,28.35398613,170.24,170.19,23.776884]
[1730392899039,16.2542,170.24,170.19,35.87667013]
[1730392899550,28.35398613,170.24,170.2,5.8754]
[1730392899736,12.09978613,170.27,170.21,36.00216013]
[1730392899944,12.09978613,170.27,170.21,35.87667013]
[1730392900546,12.09978613,170.28,170.22,12.09978613]
[1730392900853,12.09978613,170.28,170.23,23.776884]
[1730392901034,12.09978613,170.27,170.23,23.776884]
[1730392901238,12.09978613,170.27,170.22,23.776884]
[1730392901441,12.09978613,170.26,170.22,14.6862]
[1730392901646,12.09978613,170.26,170.23,23.776884]
[1730392903447,12.69920113,170.29,170.23,56.43697013]
[1730392903639,12.09978613,170.28,170.23,56.43697013]
[1730392903840,12.09978613,170.28,170.23,44.337184]
[1730392904740,12.09978613,170.26,170.23,14.686]
[1730392904941,12.09978613,170.25,170.23,14.686]
[1730392905773,12.09978613,170.26,170.23,14.686]
[1730392908465,7.7345106,170.26,170.23,14.686]
[1730392909443,7.7345106,170.26,170.21,5.875]
[1730392909444,7.7345106,170.26,170.21,7.7345106]
[1730392909649,7.7345106,170.26,170.22,23.776884]
[1730392909943,7.7345106,170.25,170.21,23.776884]
[1730392910471,5.8733,170.26,170.19,20.5651]
[1730392910472,7.7345106,170.22,170.19,20.5651]
[1730392910673,7.7345106,170.2,170.16,14.6916]
[1730392910861,7.7345106,170.19,170.16,14.6916]
[1730392911173,7.7345106,170.17,170.16,14.6916]
[1730392911374,7.7345106,170.17,170.13,20.5723]
[1730392911567,22.8532,170.24,170.06,5.8801]
[1730392911568,7.7345106,170.14,170.06,5.8801]
[1730392911768,7.7345106,170.07,170.06,1.0217225]
[1730392911951,7.7345106,170.07,170.03,5.8812]
[1730392912158,7.7345106,170.06,170.03,5.8812]
[1730392912473,12.11302341,170.06,170.03,5.8812]
[1730392913179,12.11302341,170.07,170.03,20.0]
[1730392913353,12.11302341,170.07,170.04,23.776884]
[1730392914855,12.11302341,170.08,170.04,23.776884]
[1730392915249,12.11302341,170.09,170.06,23.776884]
[1730392915757,12.11302341,170.08,170.06,23.776884]
[1730392915957,12.11302341,170.07,170.06,23.776884]
[1730392916273,12.11302341,170.07,170.04,23.776884]
[1730392916472,12.11302341,170.06,170.04,23.776884]
[1730392917776,12.11302341,170.05,170.02,20.5857]
[1730392918951,12.11302341,170.05,170.02,14.7041]
[1730392919167,12.11302341,170.05,170.03,23.776884]
[1730392919563,12.11302341,170.07,170.03,23.776884]
[1730392919764,12.11302341,170.06,170.03,23.776884]
[1730392919974,5.8793,170.09,170.03,29.658084]
[1730392919975,12.11302341,170.04,170.03,29.658084]
[1730392920367,12.11302341,170.05,170.03,29.658084]
[1730392920985,12.11302341,170.07,170.03,44.361284]
[1730392921168,12.11302341,170.06,170.03,44.361284]
[1730392921565,12.11302341,170.05,170.03,44.361284]
[1730392925076,12.11302341,170.06,170.03,44.361284]
[1730392926164,12.11302341,170.05,170.03,44.361284]
[1730392929661,12.11302341,170.07,170.03,44.361284]
[1730392929867,12.11302341,170.09,170.03,56.47430741]
[1730392930068,12.11302341,170.1,170.05,35.88990741]
[1730392930266,12.11302341,170.11,170.05,35.88990741]
[1730392931761,12.11302341,170.11,170.07,23.776884]
[1730392932161,12.11302341,170.09,170.07,23.776884]
[1730392933588,12.11302341,170.1,170.07,23.776884]
[1730392933884,12.11302341,170.1,170.07,29.656684]
[1730392934870,12.11302341,170.09,170.07,29.656684]
[1730392935072,12.11302341,170.08,170.06,14.7006]
[1730392935487,12.11302341,170.07,170.01,12.11302341]
[1730392935806,12.11302341,170.07,170.02,20.0]
[1730392936289,12.11302341,170.07,170.02,24.23135554]
[1730392936781,12.11302341,170.08,170.03,44.361384]
[1730392937485,12.11302341,170.07,170.03,44.361384]
[1730392938594,12.11302341,170.06,170.03,44.361384]
[1730392938981,12.11302341,170.07,170.03,44.361384]
[1730392939378,12.11302341,170.06,170.03,44.361384]
[1730392939581,21.11302341,170.06,170.03,44.361384]
[1730392940489,9.0,170.06,170.03,44.361384]
[1730392940880,9.0,170.06,170.03,56.47440741]
[1730392941074,9.0,170.06,170.05,23.776884]
[1730392941676,9.0,170.06,170.05,29.657484]
[1730392943405,21.11302341,170.06,170.03,14.7032]
[1730392943705,12.11302341,170.04,170.01,20.587]
[1730392943907,12.11302341,170.03,170.01,20.587]
[1730392944602,12.11302341,170.04,170.01,20.587]
[1730392944995,12.11302341,170.02,170.0,10.11305537]
[1730392945197,12.11302341,170.02,170.0,5.8823]
[1730392945907,12.11302341,170.02,169.98,14.7072]
[1730392946111,12.11302341,170.01,169.98,20.5902]
[1730392946309,12.11302341,170.0,169.98,20.5902]
[1730392947085,12.11302341,170.01,169.98,14.7072]
[1730392947282,12.11302341,170.0,169.98,14.7072]
[1730392948204,12.11302341,170.01,169.98,14.7072]
[1730392949008,9.0,170.06,169.99,23.776884]
[1730392949009,12.11302341,170.02,169.99,23.776884]
[1730392949193,12.11302341,170.03,169.98,23.776884]
[1730392949390,12.11302341,170.03,170.0,14.7058]
[1730392949987,9.0,170.06,170.02,0.12549]
[1730392950182,9.0,170.06,170.03,35.88990741]
[1730392950608,9.0,170.06,170.02,35.88990741]
[1730392950819,9.0,170.06,170.02,23.776884]
[1730392951209,9.0,170.06,170.02,35.88990741]
[1730392951517,9.0,170.06,170.04,23.776884]
[1730392952592,9.0,170.06,170.05,5.8806]
[1730392956295,9.0,170.06,170.04,5.8809]
[1730392956495,21.11302341,170.06,170.04,5.8809]
[1730392958522,21.11302341,170.06,170.03,14.7032]
[1730392960202,9.0,170.06,170.03,14.7032]
[1730392960927,21.11302341,170.06,170.03,14.7032]
[1730392961808,9.0,170.06,170.03,14.7032]
[1730392962719,21.11302341,170.06,170.03,14.7032]
[1730392965227,21.11302341,170.06,170.03,20.5845]
[1730392966208,21.11302341,170.06,170.03,14.7032]
[1730392966409,16.75275024,170.06,170.03,14.7032]
[1730392967298,16.75275024,170.06,170.03,20.5845]
[1730392968128,16.75275024,170.06,170.03,24.72452688]
[1730392968422,16.75275024,170.06,170.03,20.5845]
[1730392969212,16.75275024,170.06,170.04,4.15130885]
[1730392969515,7.75275024,170.05,170.02,5.8815]
[1730392969824,7.75275024,170.04,170.03,4.15142574]
[1730392970205,7.75275024,170.04,170.03,4.15142845]
[1730392970409,7.75275024,170.04,170.01,5.8818]
[1730392970614,7.75275024,170.03,170.02,4.15737813]
[1730392970823,7.75275024,170.04,170.02,4.15737813]
[1730392971414,7.75275024,170.04,170.03,4.15737813]
[1730392973929,7.75275024,170.04,170.01,20.5868]
[1730392974223,7.75275024,170.04,170.02,4.16163592]
[1730392974524,7.75275024,170.04,170.03,4.16163592]
[1730392979327,7.75275024,170.04,170.03,4.16094909]
[1730392981028,7.75275024,170.04,170.03,4.16093127]
[1730392981624,13.63365024,170.04,170.03,4.16093127]
[1730392982643,7.75275024,170.04,170.03,4.16093127]
[1730392982937,9.0,170.06,170.03,24.74543127]
[1730392983135,9.0,170.06,170.04,4.16093127]
[1730392983347,9.0,170.06,170.05,4.16093127]
[1730392983633,9.0,170.06,170.05,27.93781527]
[1730392984039,9.0,170.06,170.05,27.93615151]
[1730392984508,9.0,170.06,170.05,33.81675151]
[1730392986835,9.0,170.06,170.05,29.657484]
[1730392989158,9.0,170.06,170.05,33.81636109]
[1730392990426,9.0,170.06,170.05,27.93576109]
[1730392990633,9.0,170.06,170.05,29.657484]
[1730392991555,16.75275024,170.06,170.05,29.657484]
[1730392991760,9.0,170.06,170.05,29.657484]
[1730392992467,16.75275024,170.06,170.05,29.657484]
[1730392993169,9.0,170.06,170.05,29.657484]
[1730392994873,9.0,170.06,170.05,33.81676665]
[1730392997369,9.0,170.06,170.05,33.81698892]
[1730393000570,9.0,170.06,170.05,33.81696949]
[1730393001756,9.0,170.06,170.05,41.56971973]
[1730393002883,9.0,170.06,170.05,33.81696949]
[1730393003192,9.0,170.06,170.05,41.56971973]
[1730393004475,9.0,170.06,170.05,41.56986299]
[1730393005471,9.0,170.06,170.05,41.94633299]
[1730393005687,9.0,170.06,170.05,61.94633299]
[1730393006057,2.9625,170.06,170.05,78.48913299]
[1730393006282,9.0,170.1,170.08,0.12549]
[1730393006483,9.0,170.1,170.09,55.68926299]
[1730393007681,9.0,170.1,170.09,61.56846299]
[1730393012884,9.0,170.1,170.09,61.69395299]
[1730393013068,9.0,170.1,170.09,61.94493299]
[1730393013581,9.0,170.1,170.09,92.95593395]
[1730393014386,9.0,170.2,170.1,44.153354]
[1730393014595,9.0,170.2,170.16,7.75275024]
[1730393014772,9.0,170.2,170.16,13.62935024]
[1730393015383,9.0,170.2,170.16,28.32135024]
[1730393015775,9.0,170.2,170.16,20.5686]
[1730393016163,9.0,170.2,170.16,28.32135024]
[1730393017588,9.0,170.2,170.17,7.75275024]
[1730393018271,9.0,170.2,170.19,7.75275024]
[1730393018472,9.0,170.2,170.18,7.75275024]
[1730393019270,9.0,170.2,170.13,56.1849]
[1730393019472,7.75275024,170.19,170.14,7.75275024]
[1730393019802,7.75275024,170.19,170.14,13.63025024]
[1730393019967,7.75275024,170.19,170.14,28.32395024]
[1730393020166,7.75275024,170.19,170.14,20.5712]
[1730393020775,7.75275024,170.18,170.14,20.5712]
[1730393020978,7.75275024,170.17,170.14,20.5712]
[1730393021171,7.75275024,170.17,170.14,14.6937]
[1730393021787,7.75275024,170.17,170.13,5.8777]
[1730393021988,7.75275024,170.17,170.12,7.75275024]
[1730393021989,7.75275024,170.16,170.12,5.8781]
[1730393022232,7.75275024,170.13,170.09,5.8791]
[1730393022403,7.75275024,170.12,170.08,20.5784]
[1730393022916,7.75275024,170.13,170.08,20.5784]
[1730393023109,7.75275024,170.12,170.08,20.5784]
[1730393024023,7.75275024,170.11,170.07,10.02017113]
[1730393024193,7.75275024,170.08,170.07,4.14037113]
[1730393025624,13.63225024,170.08,170.07,4.14037113]
[1730393026322,13.73225024,170.08,170.07,4.14037113]
[1730393026542,18.09811231,170.08,170.07,4.14037113]
[1730393026843,18.09811231,170.08,170.01,5.8818]
[1730393027018,12.11861231,170.05,170.01,5.8818]
[1730393027725,12.11861231,170.05,170.0,20.5881]
[1730393028125,12.11861231,170.05,170.0,32.70671231]
[1730393029024,12.11861231,170.06,170.01,12.11861231]
[1730393029237,12.11861231,170.08,170.02,12.11861231]
[1730393030339,17.99821231,170.08,170.03,5.8813]
[1730393030853,12.11861231,170.05,170.01,29.658784]
[1730393031728,12.11861231,170.05,170.01,44.363784]
[1730393032028,12.11861231,170.06,170.01,44.363784]
[1730393032432,12.11861231,170.04,170.01,20.5869]
[1730393032745,12.11861231,170.03,169.99,3.99679281]
[1730393032931,12.11861231,170.05,169.99,16.11582871]
[1730393033618,12.11861231,170.05,169.99,12.11861231]
[1730393033920,12.11861231,170.05,169.99,32.70791231]
[1730393034849,17.99921231,170.05,169.99,32.70791231]
[1730393035841,17.99891231,170.06,170.01,5.882]
[1730393036438,12.11861231,170.05,170.01,5.882]
[1730393036955,12.11861231,170.04,170.0,5.8823]
[1730393038435,17.99961231,170.04,170.0,5.8823]
[1730393039351,12.11861231,170.03,170.0,5.8823]
[1730393039550,12.11861231,170.01,169.99,20.5893]
[1730393039744,12.11861231,170.02,169.99,20.5893]
[1730393040256,12.11861231,170.02,169.99,14.7067]
[1730393041050,12.11861231,170.01,169.99,14.7067]
[1730393041454,12.11861231,170.02,169.99,14.7067]
[1730393042668,18.00011231,170.03,169.99,14.7067]
[1730393043233,14.6996,170.08,169.99,14.7067]
[1730393043234,12.11861231,170.04,169.99,14.7067]
[1730393043442,17.99931231,170.05,170.0,12.11861231]
[1730393044252,12.11861231,170.07,170.01,35.89549631]
[1730393044764,12.11861231,170.07,170.02,20.5857]
[1730393046449,12.11861231,170.07,170.02,32.70431231]
[1730393046648,12.11861231,170.08,170.03,12.11861231]
[1730393046845,12.11861231,170.1,170.04,12.11861231]
[1730393047369,5.8786,170.11,170.02,49.994]
[1730393047370,12.11861231,170.08,170.03,12.11861231]
[1730393047542,12.11861231,170.08,170.02,32.70431231]
[1730393047738,5.8786,170.11,170.02,32.70431231]
[1730393047739,12.11861231,170.06,170.02,20.5857]
[1730393048151,12.11861231,170.07,170.02,32.70431231]
[1730393048442,7.75237123,170.07,170.02,28.33807123]
[1730393049566,7.75237123,170.07,170.02,20.5857]
[1730393051156,7.75237123,170.07,170.02,28.33807123]
[1730393052565,13.63237123,170.07,170.02,20.5857]
[1730393052864,7.75237123,170.06,170.02,14.7041]
[1730393053055,7.75237123,170.05,170.02,14.7041]
[1730393054050,7.75237123,170.06,170.02,14.7041]
[1730393054247,13.63187123,170.08,170.02,22.45647123]
[1730393054453,5.8795,170.08,170.04,7.75237123]
[1730393055346,5.8795,170.08,170.04,13.63317123]
[1730393056242,7.75237123,170.09,170.04,28.33557123]
[1730393056569,13.63147123,170.1,170.04,28.33557123]
[1730393058170,7.75237123,170.1,170.05,23.776884]
[1730393058468,13.63087123,170.11,170.06,7.75237123]
[1730393059690,13.63087123,170.11,170.06,5.8801]
[1730393060562,7.75237123,170.11,170.06,5.8801]
[1730393060772,7.75237123,170.11,170.07,23.776884]
[1730393061247,5.8788,170.1,170.06,20.5807]
[1730393063569,13.62987123,170.14,170.08,7.75237123]
[1730393063772,13.62987123,170.14,170.06,14.7006]
[1730393063773,5.8775,170.14,170.09,7.75237123]
[1730393064664,13.62987123,170.14,170.08,13.63187123]
[1730393064871,7.75237123,170.13,170.08,13.63187123]
[1730393065074,7.75237123,170.13,170.08,5.8795]
[1730393066148,5.8782,170.12,170.08,5.8795]
[1730393067472,5.8782,170.12,170.08,13.63187123]
[1730393069584,7.75237123,170.14,170.08,13.63187123]
[1730393070378,5.8771,170.15,170.1,7.75237123]
[1730393070552,5.8771,170.15,170.11,7.75237123]
[1730393070751,5.8768,170.16,170.12,7.75237123]
[1730393071074,5.8768,170.16,170.11,7.75237123]
[1730393071264,5.8768,170.16,170.09,23.776884]
[1730393071265,13.62917123,170.16,170.1,7.75237123]
[1730393071444,5.8775,170.14,170.1,23.776884]
[1730393072050,13.62957123,170.15,170.1,23.776884]
[1730393072751,13.62957123,170.15,170.1,31.52925523]
[1730393073275,13.62957123,170.15,170.11,5.8785]
[1730393073780,5.8772,170.15,170.11,13.63087123]
[1730393074661,7.75237123,170.17,170.12,7.75237123]
[1730393074966,5.8768,170.16,170.12,7.75237123]
[1730393075397,9.2,170.2,170.13,7.75237123]
[1730393075398,13.62847123,170.18,170.13,7.75237123]
[1730393075681,13.62817123,170.19,170.14,7.75237123]
[1730393076377,5.8758,170.19,170.14,7.75237123]
[1730393076576,5.8758,170.19,170.14,13.62967123]
[1730393076779,22.62787123,170.2,170.14,28.32337123]
[1730393077370,14.8755,170.2,170.14,22.44607123]
[1730393077577,7.75237123,170.18,170.14,14.6937]
[1730393078597,7.75237123,170.19,170.14,14.6937]
[1730393078890,5.8761,170.18,170.14,14.6937]
[1730393079561,5.8761,170.18,170.14,22.44607123]
[1730393079993,7.75237123,170.17,170.11,13.63057123]
[1730393080176,7.75237123,170.15,170.1,38.98717123]
[1730393080569,7.75237123,170.12,170.07,22.45167123]
[1730393080770,7.75237123,170.11,170.07,14.6993]
[1730393081269,7.75237123,170.11,170.06,9.8813807]
[1730393081474,7.75237123,170.11,170.06,5.8801]
[1730393081994,7.75237123,170.12,170.06,13.63247123]
[1730393082213,7.75237123,170.12,170.06,5.8801]
[1730393082390,5.8785,170.11,170.07,7.75237123]
[1730393083597,5.8785,170.11,170.06,13.63247123]
[1730393085198,5.8785,170.11,170.06,17.63609323]
[1730393085493,7.75237123,170.11,170.06,17.63609323]
[1730393085698,7.75237123,170.12,170.06,17.63609323]
[1730393086694,13.63107123,170.11,170.06,17.63609323]
[1730393087504,13.63107123,170.11,170.06,17.63530991]
[1730393087797,13.63107123,170.11,170.06,13.63247123]
[1730393088000,13.63107123,170.11,170.06,17.63530994]
[1730393088203,7.75237123,170.1,170.06,9.88293871]
[1730393088503,7.75237123,170.09,170.05,4.00283871]
[1730393090211,13.63227123,170.07,170.05,4.00283871]
[1730393090384,7.75237123,170.09,170.04,7.75237123]
[1730393090583,7.75237123,170.09,170.04,11.75520994]
[1730393091508,13.63177123,170.09,170.04,9.88363871]
[1730393091877,7.75237123,170.07,170.04,4.00283871]
[1730393092081,7.75237123,170.07,170.03,4.00283871]
[1730393092899,13.63257123,170.07,170.03,4.00283871]
[1730393094214,5.8802,170.07,170.03,17.63630994]
[1730393094420,13.63167123,170.09,170.04,4.00283871]
[1730393094917,13.63197123,170.08,170.04,4.00372208]
[1730393095284,13.63197123,170.08,170.03,28.33667123]
[1730393097013,7.75237123,170.09,170.03,28.33667123]
[1730393098507,5.8795,170.08,170.03,28.33667123]
[1730393100230,7.75237123,170.07,170.01,29.06207123]
[1730393100519,7.75237123,170.05,170.01,5.8819]
[1730393100692,7.75237123,170.06,170.01,20.5869]
[1730393101626,13.63277123,170.06,170.01,20.5869]
[1730393101998,13.63277123,170.06,170.01,28.33927123]
[1730393104804,7.75237123,170.05,170.01,14.705]
[1730393105014,5.8804,170.06,170.01,14.705]
[1730393105015,7.75237123,170.04,170.01,14.705]
[1730393105197,7.75237123,170.04,169.99,13.63497123]
[1730393105397,7.75237123,170.04,170.0,23.776884]
[1730393105826,5.8804,170.06,169.99,14.7067]
[1730393105827,7.75237123,170.03,169.99,14.7067]
[1730393106024,7.75237123,170.02,169.99,14.7067]
[1730393106621,7.75237123,170.03,169.99,14.7067]
[1730393106804,7.75237123,170.04,169.99,20.5893]
[1730393107006,13.63357123,170.04,169.99,20.5893]
[1730393107528,13.63357123,170.04,169.99,14.7067]
[1730393107729,13.63357123,170.04,169.99,20.5893]
[1730393107901,7.75237123,170.03,169.99,20.5893]
[1730393108303,7.75237123,170.01,169.97,15.8379]
[1730393108502,7.75237123,170.01,169.97,21.7211]
[1730393108902,7.75237123,170.01,169.96,22.46137123]
[1730393108903,7.75237123,169.98,169.93,7.75237123]
[1730393109108,7.75237123,169.98,169.93,28.34857123]
[1730393109535,7.75237123,169.99,169.94,7.75237123]
[1730393110202,7.75237123,169.97,169.93,14.7117]
[1730393110630,7.75237123,169.97,169.93,20.5964]
[1730393111139,5.8828,169.99,169.92,16.4107]
[1730393111140,7.75237123,169.96,169.92,16.4107]
[1730393111301,5.8828,169.99,169.9,14.7142]
[1730393111302,7.75237123,169.94,169.9,14.7142]
[1730393111918,7.75237123,169.95,169.9,20.6]
[1730393112129,7.75237123,169.96,169.9,28.35237123]
[1730393112329,7.75237123,169.96,169.91,7.75237123]
[1730393113021,7.75237123,169.97,169.91,7.75237123]
[1730393113228,7.75237123,169.96,169.91,7.75237123]
[1730393113829,7.75237123,169.96,169.92,5.8851]
[1730393114125,13.63577123,169.97,169.92,5.8851]
[1730393116024,13.63437123,170.01,169.95,7.75237123]
[1730393116204,7.75237123,170.02,169.96,7.75237123]
[1730393116402,7.75237123,170.0,169.95,7.75237123]
[1730393116936,7.75237123,170.0,169.95,23.776884]
[1730393117431,7.75237123,170.0,169.96,5.8837]
[1730393117606,7.75237123,169.99,169.96,5.8837]
[1730393118431,7.75237123,170.0,169.96,5.8837]
[1730393120021,13.63437123,170.01,169.96,5.8837]
[1730393120428,5.882,170.01,169.96,28.34537123]
[1730393120639,7.75237123,170.02,169.96,28.34537123]
[1730393120820,7.75237123,170.03,169.98,7.75237123]
[1730393121026,13.63337123,170.04,169.99,7.75237123]
[1730393121337,5.881,170.04,169.99,7.75237123]
[1730393121546,5.881,170.04,169.99,13.63477123]
[1730393123434,5.8805,170.06,170.01,7.75237123]
[1730393123636,13.63217123,170.08,170.02,7.75237123]
[1730393123944,7.75237123,170.07,170.02,7.75237123]
[1730393124633,7.75237123,170.06,170.01,7.75237123]
[1730393125137,7.75237123,170.08,170.03,7.75237123]
[1730393125346,7.75237123,170.08,170.03,28.33667123]
[1730393125635,7.75237123,170.11,170.05,7.75237123]
[1730393126041,13.63057123,170.12,170.07,7.75237123]
[1730393126450,7.75237123,170.11,170.06,7.75237123]
[1730393126614,7.75237123,170.11,170.06,13.63237123]
[1730393127528,7.75237123,170.11,170.06,28.33297123]
[1730393127844,7.75237123,170.12,170.07,31.52925523]
[1730393128043,7.75237123,170.13,170.08,7.75237123]
[1730393128347,52.98363788,170.19,170.12,7.75237123]
[1730393128348,7.75237123,170.19,170.12,7.75237123]
[1730393128519,13.62827123,170.19,170.14,7.75237123]
[1730393128721,16.75237123,170.2,170.14,7.75237123]
[1730393128927,22.62777123,170.2,170.14,13.62977123]
[1730393129123,22.62777123,170.2,170.16,7.75237123]
[1730393129124,9.0,170.2,170.16,7.75237123]
[1730393129318,9.0,170.2,170.17,7.75237123]
[1730393129540,9.0,170.2,170.16,7.75237123]
[1730393130118,16.75237123,170.2,170.15,31.52925523]
[1730393130418,9.0,170.2,170.15,35.870922]
[1730393130631,21.094038,170.2,170.15,35.870922]
[1730393131114,9.0,170.2,170.16,12.094038]
[1730393131419,9.0,170.2,170.19,12.094038]
[1730393132219,21.094038,170.2,170.14,12.094038]
[1730393132418,12.094038,170.19,170.14,12.094038]
[1730393132645,21.094038,170.2,170.14,12.094038]
[1730393132830,26.969438,170.2,170.14,12.094038]
[1730393133720,26.969438,170.2,170.15,12.094038]
[1730393133918,9.0,170.2,170.16,12.094038]
[1730393134218,9.0,170.2,170.18,12.094038]
[1730393135455,9.0,170.2,170.16,5.8766]
[1730393135456,9.0,170.2,170.17,23.776884]
[1730393135632,9.0,170.2,170.17,35.870922]
[1730393136450,14.8755,170.2,170.15,12.094038]
[1730393136622,12.094038,170.18,170.13,26.788638]
[1730393136824,12.094038,170.19,170.13,32.666438]
[1730393137031,26.969538,170.2,170.14,12.094038]
[1730393137744,17.969938,170.19,170.14,12.094038]
[1730393138053,9.0,170.2,170.14,12.094038]
[1730393138054,14.8754,170.2,170.17,12.094038]
[1730393138728,14.8754,170.2,170.16,12.094038]
[1730393138927,26.969438,170.2,170.15,35.870922]
[1730393139747,14.8754,170.2,170.15,35.870922]
[1730393140249,26.969438,170.2,170.15,35.870922]
[1730393140625,9.0,170.2,170.16,12.219528]
[1730393140946,9.0,170.2,170.18,23.776884]
[1730393141322,12.094038,170.19,170.12,32.666738]
[1730393141518,12.094038,170.19,170.13,12.094038]
[1730393141748,12.094038,170.17,170.11,34.638938]
[1730393141953,12.094038,170.18,170.12,12.094038]
[1730393142751,5.8761,170.18,170.14,23.776884]
[1730393144244,12.094038,170.17,170.12,23.776884]
[1730393145536,17.970738,170.17,170.12,23.776884]